bitfinex/quotes_ETHUSD_20250507
["timestamp","ask_amount","ask_price","bid_price","bid_amount"]
[1746629009515,4.14649471,1830.6,1830.1,0.88433964]
[1746629009943,4.14649471,1830.6,1830.1,0.8297]
[1746629010140,0.06453422,1830.5,1830.1,0.8297]
[1746629010448,9.60930536,1830.6,1830.1,0.8297]
[1746629010832,9.67383958,1830.6,1830.1,0.8297]
[1746629011031,4.21102893,1830.6,1830.1,0.8297]
[1746629011331,9.67371993,1830.6,1830.1,0.8297]
[1746629011534,4.21102893,1830.6,1830.1,0.88433338]
[1746629011839,4.21102893,1830.6,1830.1,0.8297]
[1746629013272,3.42332893,1830.6,1830.2,0.05463339]
[1746629013425,3.35879471,1830.6,1830.3,5.49]
[1746629013726,3.35879471,1830.6,1830.4,0.549]
[1746629017535,3.42332893,1830.6,1830.4,0.549]
[1746629017731,3.35879471,1830.6,1830.4,0.549]
[1746629018767,3.42332893,1830.6,1830.4,0.549]
[1746629019333,3.35879471,1830.6,1830.4,0.549]
[1746629020282,3.42332893,1830.6,1830.4,0.549]
[1746629023478,8.88607366,1830.6,1830.3,5.49]
[1746629023637,3.35879471,1830.4,1830.3,5.49]
[1746629028943,4.14519471,1830.8,1830.3,6.2762]
[1746629029280,4.21552893,1831.0,1830.5,0.7862]
[1746629029451,3.0,1830.9,1830.5,0.7862]
[1746629029788,3.0,1830.9,1830.7,0.7775]
[1746629029943,3.0,1830.9,1830.8,5.487]
[1746629030342,8.82003454,1831.1,1830.8,6.11345]
[1746629030584,3.35879471,1830.9,1830.8,5.99802699]
[1746629031686,3.35879471,1830.9,1830.8,5.487]
[1746629032981,3.35879471,1831.1,1830.8,5.487]
[1746629033198,3.35879471,1831.1,1830.9,0.7922]
[1746629035583,3.35879471,1831.1,1830.8,5.487]
[1746629035584,3.42332893,1831.1,1830.8,5.487]
[1746629035789,3.42332893,1831.1,1830.9,0.5487]
[1746629039764,8.88455937,1831.1,1830.9,0.5487]
[1746629039959,8.88455937,1831.1,1830.8,5.487]
[1746629040204,3.35879471,1830.9,1830.8,5.487]
[1746629041818,0.06453422,1831.1,1830.8,5.487]
[1746629042018,3.35879471,1830.9,1830.8,5.487]
[1746629042313,0.06453422,1831.1,1830.8,5.487]
[1746629042483,3.42332893,1831.1,1830.9,0.5487]
[1746629042687,8.88465545,1831.1,1830.8,5.487]
[1746629042884,3.35879471,1830.9,1830.8,5.487]
[1746629044824,3.35879471,1830.9,1830.6,19.677]
[1746629045127,3.0,1830.8,1830.7,5.485]
[1746629046225,6.35879471,1830.8,1830.7,5.485]
[1746629052934,12.61188778,1830.8,1830.7,5.485]
[1746629056758,0.8314,1831.0,1830.7,5.485]
[1746629056920,9.65127202,1831.2,1830.8,0.7862]
[1746629057118,0.06453422,1831.1,1830.8,0.7862]
[1746629057319,3.06453422,1831.1,1830.8,0.7862]
[1746629057515,0.06453422,1831.1,1830.8,0.7862]
[1746629057829,3.06453422,1831.1,1830.8,0.7862]
[1746629058023,3.06453422,1831.1,1830.8,1.41332]
[1746629058951,3.35879471,1831.0,1830.8,1.41332]
[1746629059157,6.35879471,1831.1,1830.8,1.41332]
[1746629060251,3.0,1831.1,1830.8,1.41332]
[1746629062262,3.0,1831.1,1830.8,31.41332]
[1746629062462,3.0,1831.1,1830.9,3.141332]
[1746629062932,3.35879471,1831.0,1830.9,3.141332]
[1746629063630,3.35879471,1831.0,1830.8,31.41332]
[1746629064034,3.35879471,1831.0,1830.8,30.0]
[1746629064926,5.52632896,1830.9,1830.8,30.0]
[1746629065126,0.06453422,1830.9,1830.8,30.0]
[1746629065980,5.52632896,1830.9,1830.8,30.0]
[1746629066181,8.52632896,1830.9,1830.8,35.482]
[1746629066982,9.34132896,1830.9,1830.8,35.482]
[1746629071781,9.34132896,1830.9,1830.8,16.00262968]
[1746629080462,9.34132896,1830.9,1830.8,10.52062968]
[1746629081083,20.09132896,1830.9,1830.8,10.52062968]
[1746629081386,12.63328296,1830.5,1830.4,25.157]
[1746629081851,9.27448825,1830.5,1830.4,25.157]
[1746629082052,9.33902247,1830.5,1830.4,25.157]
[1746629085862,9.33902247,1830.5,1830.4,5.48]
[1746629086295,9.75426511,1830.5,1830.4,5.48]
[1746629089295,5.46408787,1830.2,1830.0,0.8103]
[1746629089496,8.82288258,1830.2,1830.1,5.48]
[1746629091510,11.8874168,1830.2,1830.1,5.48]
[1746629091708,11.82288258,1830.2,1830.1,5.48]
[1746629095809,5.46477949,1829.9,1829.8,0.8261]
[1746629096025,8.46477949,1829.9,1829.8,6.3071]
[1746629097828,8.52931371,1829.9,1829.8,6.3071]
[1746629099755,3.06453422,1829.9,1829.8,6.3071]
[1746629100701,8.52931371,1829.9,1829.8,6.3071]
[1746629102221,8.52931371,1829.9,1829.8,5.481]
[1746629102812,8.80740122,1829.9,1829.8,5.481]
[1746629103299,8.52931371,1829.9,1829.8,5.481]
[1746629110855,8.52931371,1829.9,1829.6,0.7671]
[1746629110856,8.46537683,1829.7,1829.6,5.479]
[1746629111158,11.88870576,1829.7,1829.6,5.479]
[1746629111341,11.82417154,1829.7,1829.6,5.479]
[1746629111838,12.63867154,1829.7,1829.6,5.479]
[1746629112762,0.7743,1829.3,1829.2,19.689]
[1746629112943,5.46700529,1829.2,1829.0,6.2753]
[1746629113141,0.06453422,1829.1,1829.0,6.2753]
[1746629113450,0.41094034,1829.1,1829.0,6.2753]
[1746629113743,3.06453422,1829.2,1829.0,6.2753]
[1746629114520,3.0,1829.3,1829.0,6.10653]
[1746629114711,4.16109471,1829.7,1829.1,0.8097]
[1746629114712,5.53035958,1829.6,1829.1,0.8097]
[1746629114915,5.46598868,1829.5,1829.1,0.8097]
[1746629115151,5.88312493,1829.5,1829.1,0.8097]
[1746629115339,3.41713625,1829.5,1829.1,1.501323]
[1746629115744,3.41713625,1829.5,1829.2,0.8292]
[1746629117029,0.06453422,1829.6,1829.2,0.8292]
[1746629117230,3.0,1829.7,1829.4,0.8033]
[1746629117431,3.0,1829.7,1829.5,5.479]
[1746629117729,5.46567555,1829.6,1829.5,6.2927]
[1746629118276,5.53020977,1829.6,1829.5,6.2927]
[1746629118917,11.82437858,1829.7,1829.5,6.2927]
[1746629120061,12.24077399,1829.7,1829.5,6.2927]
[1746629121083,5.46567555,1829.6,1829.5,6.2927]
[1746629121421,12.24077399,1829.7,1829.5,6.2927]
[1746629121621,17.70642895,1829.7,1829.5,6.2927]
[1746629122486,12.24077399,1829.7,1829.5,6.2927]
[1746629122690,6.77519012,1829.7,1829.5,6.2927]
[1746629122983,6.83972434,1829.7,1829.5,6.2927]
[1746629123559,6.42332893,1829.7,1829.5,6.2927]
[1746629123963,11.88870826,1829.7,1829.5,6.2927]
[1746629124168,11.82417404,1829.7,1829.5,6.2927]
[1746629125153,5.46567555,1829.6,1829.5,5.479]
[1746629126594,17.28978574,1829.7,1829.5,5.479]
[1746629126892,11.82417404,1829.7,1829.5,5.479]
[1746629127381,17.28979321,1829.7,1829.5,5.479]
[1746629127583,5.46567555,1829.6,1829.5,5.479]
[1746629128493,5.53020977,1829.6,1829.5,5.479]
[1746629128794,8.46616328,1829.5,1829.3,0.786]
[1746629129152,5.46627309,1829.4,1829.3,0.786]
[1746629129576,5.53080731,1829.4,1829.3,0.786]
[1746629129962,5.53080731,1829.4,1829.3,6.265]
[1746629130592,0.06453422,1829.4,1829.3,6.265]
[1746629131892,3.0,1829.7,1829.3,6.8915]
[1746629132093,9.10704565,1830.6,1829.4,0.86126112]
[1746629132094,8.82338105,1830.0,1829.4,0.86126112]
[1746629132280,5.52946813,1829.9,1829.4,0.86126112]
[1746629132481,8.82285625,1830.2,1829.4,0.86125491]
[1746629132667,0.06453422,1830.1,1829.4,0.8066]
[1746629133071,5.52871953,1830.1,1829.4,0.8066]
[1746629133298,3.0,1830.0,1829.4,0.8066]
[1746629133617,3.0,1830.0,1829.6,0.8035]
[1746629133796,3.0,1830.0,1829.7,6.2835]
[1746629134560,8.52883324,1830.1,1829.7,6.2835]
[1746629135862,8.82330205,1830.0,1829.7,6.2835]
[1746629136061,11.82387286,1829.8,1829.7,5.48]
[1746629137574,12.58577286,1829.8,1829.7,5.48]
[1746629139711,5.46604578,1829.5,1829.2,0.8033]
[1746629140011,0.06453422,1829.5,1829.3,5.477]
[1746629140572,3.0,1829.4,1829.3,5.477]
[1746629144090,3.06453422,1829.4,1829.3,5.477]
[1746629145813,3.0,1829.4,1829.3,5.477]
[1746629146213,3.0,1829.7,1829.3,6.10503]
[1746629146405,0.06453422,1829.6,1829.3,6.10503]
[1746629147480,5.53022135,1829.6,1829.3,6.10503]
[1746629147818,5.53022135,1829.6,1829.3,5.477]
[1746629149327,3.0,1829.4,1829.3,5.477]
[1746629149482,8.53080731,1829.4,1829.3,5.477]
[1746629150220,11.88960202,1829.4,1829.3,5.477]
[1746629150519,5.46696429,1829.2,1829.0,0.7729]
[1746629150695,3.06453422,1829.2,1829.1,5.477]
[1746629150885,8.53140498,1829.2,1829.1,5.477]
[1746629151089,3.06453422,1829.2,1829.1,5.477]
[1746629151699,3.0,1829.2,1829.1,5.477]
[1746629159726,0.8278,1829.7,1829.2,0.8264]
[1746629159940,5.53024993,1829.6,1829.2,0.8264]
[1746629160143,3.42332893,1829.6,1829.2,0.8264]
[1746629160346,3.0,1829.5,1829.2,0.8264]
[1746629161151,3.06453422,1829.6,1829.2,0.8264]
[1746629161333,3.06453422,1829.6,1829.2,1.519239]
[1746629161538,6.42332893,1829.6,1829.2,1.519239]
[1746629161849,6.42332893,1829.6,1829.2,0.8264]
[1746629161850,11.88904177,1829.6,1829.2,0.8264]
[1746629162037,11.82450755,1829.6,1829.2,0.8264]
[1746629162516,3.0,1829.4,1829.2,0.8264]
[1746629163347,3.0,1829.4,1829.1,5.477]
[1746629163666,0.06453422,1829.3,1829.1,5.477]
[1746629164019,11.82566547,1829.2,1829.1,5.477]
[1746629164312,6.35879471,1829.2,1829.1,5.477]
[1746629165054,3.0,1829.2,1829.1,5.477]
[1746629166955,11.82566547,1829.2,1829.1,5.477]
[1746629167151,6.35879471,1829.2,1829.1,5.477]
[1746629167359,7.48290989,1829.2,1829.1,5.477]
[1746629168569,7.54744411,1829.2,1829.1,5.477]
[1746629168863,13.01431487,1829.2,1829.1,5.477]
[1746629169030,12.94978065,1829.2,1829.1,5.477]
[1746629171561,13.75188065,1829.2,1829.1,5.477]
[1746629171765,8.46746856,1829.0,1828.9,19.692]
[1746629171965,12.61341038,1829.0,1828.9,25.168]
[1746629172269,13.35097616,1829.0,1828.9,19.692]
[1746629172638,8.46806649,1828.8,1828.7,5.476]
[1746629172845,11.89139542,1828.8,1828.7,5.476]
[1746629173039,11.8268612,1828.8,1828.7,5.476]
[1746629173245,3.0,1828.6,1828.4,4.44063862]
[1746629173441,3.06453422,1828.6,1828.5,5.476]
[1746629174292,8.53319877,1828.6,1828.5,5.476]
[1746629174467,6.42332893,1828.6,1828.5,5.476]
[1746629174633,3.06453422,1828.6,1828.5,5.476]
[1746629176201,0.06453422,1828.6,1828.4,3.67373862]
[1746629176333,0.06453422,1828.6,1828.5,5.477]
[1746629176883,4.14594182,1828.6,1828.5,5.477]
[1746629177183,0.78714711,1828.6,1828.5,5.477]
[1746629177477,0.06453422,1828.6,1828.5,5.477]
[1746629178529,5.46724312,1829.1,1828.5,5.477]
[1746629178530,4.17289471,1829.0,1828.5,6.2511]
[1746629178761,0.06453422,1828.9,1828.5,6.2511]
[1746629179165,3.06453422,1828.9,1828.5,6.2511]
[1746629179395,3.06453422,1828.9,1828.5,6.87621]
[1746629179671,5.53230576,1828.9,1828.5,6.2511]
[1746629180163,3.0,1828.8,1828.5,6.2511]
[1746629180560,3.0,1829.1,1828.7,0.7728]
[1746629180759,3.06453422,1829.1,1828.7,0.7728]
[1746629180958,8.53187997,1829.1,1828.7,0.7728]
[1746629181186,5.53187997,1829.1,1828.7,0.7728]
[1746629181397,3.0,1829.0,1828.7,0.7728]
[1746629183508,5.46838403,1828.7,1828.5,6.3021]
[1746629183715,5.53291825,1828.7,1828.5,6.3021]
[1746629184005,3.06453422,1828.7,1828.4,0.8251]
[1746629184217,8.53304885,1828.7,1828.6,5.477]
[1746629184364,9.52658892,1828.7,1828.6,5.477]
[1746629184699,9.25482518,1828.6,1828.2,0.4112054]
[1746629185019,12.61435659,1828.3,1828.2,0.4112054]
[1746629185159,6.25616027,1828.1,1828.0,3.67373862]
[1746629185367,12.6794892,1828.1,1828.0,3.67373862]
[1746629185663,3.0,1827.7,1827.5,4.75947156]
[1746629185860,3.0,1827.6,1827.5,24.46047156]
[1746629186102,0.06453422,1827.7,1827.5,29.93847156]
[1746629186324,11.8947954,1827.7,1827.6,5.478]
[1746629186526,8.47165681,1827.6,1827.5,24.46047156]
[1746629186710,0.06453422,1827.6,1827.5,29.93847156]
[1746629186915,3.06453422,1827.6,1827.5,29.93847156]
[1746629187100,3.0,1827.6,1827.5,29.93847156]
[1746629187420,8.47165681,1827.6,1827.5,29.93847156]
[1746629187599,8.53619103,1827.6,1827.5,29.93847156]
[1746629188127,4.86487429,1827.7,1827.5,29.93847156]
[1746629188292,3.0,1827.6,1827.5,4.75947156]
[1746629188486,3.0,1827.6,1827.5,10.23747156]
[1746629188822,3.0,1827.6,1827.5,4.75947156]
[1746629188996,0.06453422,1827.7,1827.5,10.23847156]
[1746629189403,0.06453422,1827.7,1827.5,10.99617156]
[1746629189615,0.06453422,1827.8,1827.5,10.99617156]
[1746629190130,3.0,1827.6,1827.5,4.75947156]
[1746629190423,0.06453422,1827.6,1827.5,10.23847156]
[1746629190632,3.0,1828.0,1827.5,6.2995]
[1746629190836,0.3,1828.0,1827.5,6.2995]
[1746629190990,0.36453422,1828.0,1827.5,6.2995]
[1746629191190,3.36453422,1828.0,1827.5,6.2995]
[1746629191423,8.83506515,1828.0,1827.5,6.2995]
[1746629192425,3.0,1827.8,1827.5,6.2995]
[1746629192604,3.06453422,1827.8,1827.6,5.479]
[1746629192924,3.3,1828.0,1827.7,5.479]
[1746629193131,3.36453422,1828.0,1827.7,5.479]
[1746629193342,0.06453422,1828.2,1827.8,0.81410655]
[1746629193493,9.13008716,1828.5,1827.8,0.81410655]
[1746629193695,0.06453422,1828.4,1827.8,0.7594]
[1746629194038,8.53381428,1828.4,1827.8,0.7594]
[1746629194328,0.06453422,1828.4,1827.8,0.7594]
[1746629194639,5.46958347,1828.3,1827.9,5.479]
[1746629194821,5.46943364,1828.4,1827.9,5.479]
[1746629195020,3.0,1828.3,1827.8,0.7594]
[1746629195535,8.46968711,1828.3,1827.9,5.479]
[1746629195907,8.53422133,1828.3,1827.9,5.479]
[1746629196632,8.53422133,1828.3,1827.8,0.7594]
[1746629196838,8.53422133,1828.3,1828.0,5.479]
[1746629197140,0.06453422,1828.3,1828.0,5.479]
[1746629197338,0.06453422,1828.3,1827.8,0.7594]
[1746629197585,3.98175885,1828.3,1827.8,0.7594]
[1746629197708,8.46915816,1828.5,1827.9,5.53369997]
[1746629197906,3.0,1828.3,1827.9,5.53369997]
[1746629198231,8.46968284,1828.3,1827.9,5.479]
[1746629198539,8.46968284,1828.3,1827.9,5.53370117]
[1746629198705,3.0,1828.3,1827.9,5.53370117]
[1746629199223,5.53399667,1828.4,1827.9,5.53370117]
[1746629199429,3.0,1828.3,1827.9,5.53370117]
[1746629200129,3.0,1828.3,1827.9,5.479]
[1746629200717,0.91793389,1828.4,1827.9,5.479]
[1746629200941,3.91793389,1828.4,1827.9,5.479]
[1746629201249,3.0,1828.7,1828.0,0.82540095]
[1746629201404,3.06453422,1828.7,1828.2,0.7707]
[1746629201605,3.06453422,1828.7,1828.3,5.532]
[1746629201842,9.3862026,1828.7,1828.3,5.532]
[1746629202610,3.0,1828.5,1828.4,5.532]
[1746629202830,0.06453422,1828.5,1828.4,5.532]
[1746629203123,3.06453422,1828.6,1828.4,5.532]
[1746629203318,3.0,1828.6,1828.4,5.532]
[1746629203529,8.53267433,1828.8,1828.4,5.532]
[1746629203886,0.85326743,1828.7,1828.4,5.532]
[1746629204038,3.06453422,1828.8,1828.5,0.8054]
[1746629204209,8.53263282,1828.8,1828.5,0.8054]
[1746629206146,14.00093552,1828.8,1828.5,0.8054]
[1746629206346,8.4680986,1828.8,1828.5,0.8054]
[1746629206640,8.53263282,1828.8,1828.5,0.8054]
[1746629209542,3.06453422,1828.8,1828.5,0.8054]
[1746629210360,5.93572083,1829.0,1828.5,1.43914]
[1746629210361,3.0,1828.9,1828.5,1.43914]
[1746629210565,3.06453422,1828.9,1828.5,0.8054]
[1746629210716,0.784,1828.6,1828.1,20.5328]
[1746629210912,3.0,1828.6,1828.2,5.531]
[1746629212061,3.06453422,1828.7,1828.2,5.531]
[1746629212212,9.4646072,1828.7,1828.2,5.531]
[1746629214737,5.46941521,1828.4,1828.1,20.5328]
[1746629214940,8.53394943,1828.4,1828.3,5.531]
[1746629215735,3.0,1828.3,1828.1,0.8268]
[1746629215922,3.0,1828.3,1828.2,5.531]
[1746629216545,3.06453422,1828.4,1828.2,5.531]
[1746629217561,3.9795884,1828.4,1828.3,5.531]
[1746629219466,0.9795884,1828.4,1828.3,5.531]
[1746629219665,0.06453422,1828.4,1828.3,5.531]
[1746629221568,8.53379696,1828.4,1828.3,5.531]
[1746629221730,3.0,1828.3,1828.0,20.4775]
[1746629221930,3.0,1828.3,1828.1,5.531]
[1746629222141,0.06453422,1828.2,1828.0,19.703]
[1746629222343,0.85863422,1828.2,1828.1,5.531]
[1746629222650,9.32857319,1828.2,1828.1,5.531]
[1746629222962,8.47016027,1828.1,1827.8,0.7813]
[1746629223175,0.06453422,1828.0,1827.9,5.531]
[1746629223333,3.06453422,1828.0,1827.9,5.531]
[1746629224131,8.53499373,1828.0,1827.9,5.531]
[1746629225166,3.0,1827.9,1827.7,19.704]
[1746629225369,3.0,1827.9,1827.8,5.531]
[1746629225547,8.53502522,1828.0,1827.8,5.531]
[1746629225885,0.06453422,1828.0,1827.8,5.531]
[1746629228591,5.53514245,1828.0,1827.8,5.531]
[1746629228759,5.53514245,1828.0,1827.7,19.704]
[1746629229088,9.23842999,1827.9,1827.8,5.532]
[1746629229489,9.30296421,1827.9,1827.8,5.532]
[1746629230195,3.0,1827.5,1827.2,20.5008]
[1746629230353,3.06453422,1827.5,1827.3,5.532]
[1746629230683,3.06453422,1827.5,1827.2,19.706]
[1746629230850,0.06453422,1827.5,1827.3,5.532]
[1746629231056,3.0,1827.4,1827.2,19.706]
[1746629231267,0.06453422,1827.3,1827.2,19.706]
[1746629231488,3.0,1827.5,1827.2,25.235]
[1746629231691,3.0,1827.6,1827.3,0.7829]
[1746629232015,0.06453422,1827.6,1827.2,25.235]
[1746629232308,3.06453422,1827.6,1827.2,25.235]
[1746629232786,8.53622769,1827.6,1827.2,25.235]
[1746629232993,3.06453422,1827.6,1827.2,25.235]
[1746629233881,0.06453422,1827.6,1827.3,0.7551]
[1746629234097,0.06453422,1827.7,1827.3,0.7551]
[1746629234518,0.06453422,1827.7,1827.3,0.80982095]
[1746629234820,0.40053985,1828.0,1827.3,0.80982095]
[1746629235121,3.06453422,1827.9,1827.3,0.80982095]
[1746629235601,8.53541926,1827.9,1827.3,0.80982095]
[1746629235812,8.53541926,1827.9,1827.3,0.7551]
[1746629236176,8.53541926,1827.9,1827.2,27.83994]
[1746629236177,8.53541926,1827.9,1827.4,0.05471473]
[1746629236497,0.06453422,1827.9,1827.5,0.8258]
[1746629236793,0.06453422,1827.9,1827.6,5.529]
[1746629237196,0.06453422,1828.0,1827.7,0.7626]
[1746629239921,3.06453422,1828.1,1827.7,0.7626]
[1746629240128,8.53470621,1828.1,1827.7,0.7626]
[1746629240321,3.06453422,1828.1,1827.7,0.7626]
[1746629240520,3.06453422,1828.1,1827.7,1.44646963]
[1746629240712,3.06453422,1828.1,1827.7,1.39176]
[1746629242589,3.0,1828.1,1827.7,1.44646695]
[1746629243130,3.0,1828.1,1827.7,1.39176]
[1746629243301,3.06453422,1828.1,1827.7,1.39176]
[1746629245142,6.30088189,1828.4,1827.8,0.7661]
[1746629245305,3.06453422,1828.3,1827.8,0.7661]
[1746629245718,6.43448601,1828.3,1827.8,0.7661]
[1746629246229,11.9040861,1828.3,1827.8,0.7661]
[1746629246432,11.83955065,1828.3,1827.8,0.7661]
[1746629249355,3.36995179,1828.1,1827.8,0.7661]
[1746629249558,3.43448601,1828.1,1827.8,0.7661]
[1746629249851,3.36995179,1828.1,1827.8,0.7661]
[1746629252371,3.0,1828.0,1827.8,0.7661]
[1746629253157,11.84071058,1827.9,1827.6,0.7951]
[1746629253347,4.61855707,1827.8,1827.7,5.529]
[1746629253544,6.36995179,1827.8,1827.7,5.529]
[1746629254558,6.36995179,1827.8,1827.6,0.7951]
[1746629254725,6.36995179,1827.8,1827.7,5.529]
[1746629255468,6.36995179,1827.8,1827.6,0.7951]
[1746629255649,6.36995179,1827.8,1827.7,5.529]
[1746629256272,6.43448601,1827.8,1827.7,5.529]
[1746629256461,3.0,1827.6,1827.4,0.8054]
[1746629256663,3.0,1827.6,1827.5,5.529]
[1746629257168,6.43448601,1827.6,1827.5,5.529]
[1746629257342,12.56889347,1827.6,1827.5,5.529]
[1746629257542,12.50435925,1827.6,1827.5,5.529]
[1746629258317,12.50435925,1827.6,1827.2,20.4934]
[1746629258318,7.03260615,1827.6,1827.2,20.4934]
[1746629258578,11.8416086,1827.6,1827.5,5.529]
[1746629259279,6.36995179,1827.6,1827.5,5.529]
[1746629260578,6.43448601,1827.6,1827.5,5.529]
[1746629261797,11.90614282,1827.6,1827.5,5.529]
[1746629261961,11.8416086,1827.6,1827.5,5.529]
[1746629262300,6.36995179,1827.6,1827.5,5.529]
[1746629262502,6.43448601,1827.6,1827.5,5.529]
[1746629263164,11.90614282,1827.6,1827.5,5.529]
[1746629263464,11.8416086,1827.6,1827.5,5.529]
[1746629263663,6.36995179,1827.6,1827.5,5.529]
[1746629263893,11.90614282,1827.6,1827.5,5.529]
[1746629264090,11.8416086,1827.6,1827.5,5.529]
[1746629264294,6.36995179,1827.6,1827.5,5.529]
[1746629264460,11.90614282,1827.6,1827.5,5.529]
[1746629264794,11.8416086,1827.6,1827.5,5.529]
[1746629265495,6.36995179,1827.6,1827.5,5.529]
[1746629265665,6.43448601,1827.6,1827.5,5.529]
[1746629266807,11.90614282,1827.6,1827.5,5.529]
[1746629266975,11.8416086,1827.6,1827.5,5.529]
[1746629269818,6.36995179,1827.6,1827.5,5.529]
[1746629269980,6.43448601,1827.6,1827.5,5.529]
[1746629270321,11.90614282,1827.6,1827.5,5.529]
[1746629270481,6.36995179,1827.6,1827.5,5.529]
[1746629270809,0.06453422,1827.6,1827.5,6.3411]
[1746629271018,3.0,1827.8,1827.5,6.97521]
[1746629271212,3.0,1827.8,1827.5,6.3411]
[1746629271625,6.36995179,1827.8,1827.5,6.3411]
[1746629271834,11.84104831,1827.8,1827.5,6.3411]
[1746629272528,6.36995179,1827.8,1827.5,6.3411]
[1746629272732,6.43448601,1827.8,1827.5,6.3411]
[1746629273198,11.90557397,1827.8,1827.5,6.3411]
[1746629273399,11.84103975,1827.8,1827.5,6.3411]
[1746629273599,6.36995179,1827.8,1827.5,6.3411]
[1746629273800,11.90558053,1827.8,1827.5,6.3411]
[1746629274000,11.84104631,1827.8,1827.5,6.3411]
[1746629274628,6.36995179,1827.8,1827.5,6.3411]
[1746629274827,6.43448601,1827.8,1827.5,6.3411]
[1746629275330,11.90559739,1827.8,1827.5,6.3411]
[1746629275635,11.84106317,1827.8,1827.5,6.3411]
[1746629275930,6.36995179,1827.8,1827.5,6.3411]
[1746629276140,11.90566451,1827.8,1827.5,6.3411]
[1746629276432,11.84113029,1827.8,1827.5,6.3411]
[1746629276951,0.06453422,1827.7,1827.5,6.3411]
[1746629277325,11.84113029,1827.8,1827.5,6.3411]
[1746629277539,0.06453422,1827.7,1827.5,6.3411]
[1746629277854,11.84113029,1827.8,1827.5,6.3411]
[1746629278149,6.36995179,1827.8,1827.5,6.3411]
[1746629278349,6.43448601,1827.8,1827.5,6.3411]
[1746629278557,6.36995179,1827.8,1827.5,6.3411]
[1746629278763,0.8304,1828.1,1827.5,6.3411]
[1746629278764,5.47017133,1828.1,1827.7,0.7686]
[1746629279061,3.0,1827.9,1827.7,0.7686]
[1746629280745,3.0,1827.9,1827.6,5.506]
[1746629280746,3.36995179,1827.8,1827.6,5.506]
[1746629280953,8.53589166,1827.7,1827.4,0.7686]
[1746629281165,8.53589166,1827.7,1827.5,5.505]
[1746629282879,3.06453422,1827.7,1827.5,5.505]
[1746629284085,3.0,1827.7,1827.5,5.505]
[1746629284461,3.0,1827.7,1827.5,6.13236]
[1746629286556,3.06453422,1827.7,1827.5,5.505]
[1746629286762,8.53589922,1827.7,1827.5,5.505]
[1746629289166,3.0,1827.6,1827.5,5.505]
[1746629289366,6.36995179,1827.6,1827.5,5.505]
[1746629289594,11.8416086,1827.6,1827.2,20.5311]
[1746629289795,5.47210944,1827.5,1827.2,20.5311]
[1746629289994,3.36995179,1827.4,1827.3,5.505]
[1746629290403,6.24040944,1827.5,1827.3,5.505]
[1746629291195,11.71261053,1827.5,1827.3,5.505]
[1746629291402,6.24040944,1827.5,1827.3,5.505]
[1746629291732,8.47276879,1827.3,1827.1,0.8317]
[1746629291936,8.53730301,1827.3,1827.2,5.505]
[1746629293839,3.06453422,1827.3,1827.0,19.712]
[1746629293998,8.53732426,1827.3,1827.2,5.488]
[1746629295731,9.31882426,1827.3,1827.2,5.488]
[1746629296841,9.86882426,1827.3,1827.2,5.488]
[1746629297043,9.86882426,1827.3,1827.0,19.712]
[1746629297044,8.47315417,1827.1,1827.0,19.712]
[1746629297343,12.71114018,1827.1,1827.0,19.712]
[1746629297503,12.64660596,1827.1,1827.0,19.712]
[1746629300535,3.0,1827.1,1827.0,19.712]
[1746629301054,0.06453422,1827.3,1827.0,19.712]
[1746629301252,3.06453422,1827.3,1827.0,19.712]
[1746629302354,3.06453422,1827.4,1827.1,0.8119]
[1746629302855,8.53679274,1827.4,1827.1,0.8119]
[1746629303057,14.00929307,1827.4,1827.1,0.8119]
[1746629303224,8.47225852,1827.4,1827.1,0.8119]
[1746629303550,3.0,1827.2,1827.1,0.8119]
[1746629304850,0.06453422,1827.3,1827.1,0.8119]
[1746629305053,3.06453422,1827.4,1827.1,2.86429]
[1746629305624,8.53679319,1827.4,1827.1,2.86429]
[1746629307254,8.47286019,1827.2,1827.0,19.712]
[1746629307446,8.53739441,1827.2,1827.0,19.712]
[1746629307755,3.06453422,1827.2,1827.0,19.712]
[1746629310645,3.0,1827.2,1827.0,19.712]
[1746629311835,3.06453422,1827.2,1827.0,19.712]
[1746629312039,8.5374796,1827.2,1827.0,19.712]
[1746629312349,3.06453422,1827.2,1827.0,19.712]
[1746629312545,3.0,1827.2,1827.0,19.712]
[1746629312949,3.06453422,1827.2,1827.0,19.712]
[1746629313852,3.0,1827.2,1827.0,19.712]
[1746629315160,3.0,1827.4,1827.0,22.31531]
[1746629315342,11.90674303,1827.4,1827.1,0.7582]
[1746629315537,11.84220881,1827.4,1827.1,0.7582]
[1746629315757,17.31470056,1827.4,1827.1,0.7582]
[1746629315939,17.3147109,1827.4,1827.1,0.7582]
[1746629316275,11.84227318,1827.4,1827.1,0.7582]
[1746629316577,3.0,1827.2,1827.1,0.7582]
[1746629317161,5.47315417,1827.1,1827.0,19.712]
[1746629317384,8.53768839,1827.1,1827.0,19.712]
[1746629318398,8.47315417,1827.1,1827.0,19.712]
[1746629318785,3.0,1827.0,1826.9,6.2909]
[1746629319797,3.0,1827.0,1826.9,5.489]
[1746629319998,3.41783518,1827.0,1826.9,5.489]
[1746629320501,0.41783518,1827.0,1826.9,5.489]
[1746629320797,8.90742651,1827.2,1826.9,5.489]
[1746629321096,14.38057589,1827.2,1826.9,5.489]
[1746629321261,8.84289229,1827.2,1826.9,5.489]
[1746629321457,8.90742651,1827.2,1826.9,5.489]
[1746629321674,3.0,1827.0,1826.9,5.489]
[1746629322643,3.0,1827.0,1826.7,0.7724]
[1746629322927,5.47377157,1826.9,1826.8,5.489]
[1746629323488,8.47377157,1826.9,1826.8,5.489]